[Event "Hungarian Championship Men 2022"]
[Site "Budapest"]
[Date "2022.12.10"]
[Round "6.3"]
[White "Berkes, Ferenc"]
[Black "Prohaszka, Peter"]
[Result "1/2-1/2"]
[ECO "D02"]
[WhiteElo "2643"]
[BlackElo "2562"]
[Annotator "TA"]
[PlyCount "81"]
[EventDate "2022.12.03"]
[EventType "tourn"]
[EventCountry "HUN"]
[SourceTitle "playchess.com"]
[Source "ChessBase"]
[SourceQuality "1"]
[TimeControl "40/5400+30:1800+30"]

{[%evp 9,81,0,0,0,0,0,0,8,0,0,27,4,24,10,14,13,16,7,12,19,23,2,11,0,0,0,0,0,0,0,0,0,9,10,11,8,3,0,12,0,2,0,0,0,0,0,0,0,0,0,0,0,0,0,0,0,0,0,0,0,0,0,0,0,0,0,0,0,0,0,0,0,0,0]} 1. d4 {[%emt 0:00:34]} d5 {[%emt 0:00:39]} 2. Nf3 {[%emt 0:00:09]} Nf6 {[%emt 0:00:09]} 3. c4 {[%emt 0:00:09]} c6 {[%emt 0:00:06]} 4. Qc2 {[%emt 0:00:13]} g6 {[%emt 0:06:52]} 5. cxd5 {[%emt 0:00:47]} cxd5 {[%emt 0:01:31]} 6. Bf4 {[%emt 0:00:10] D11: Slav Defence: 3 Nf3 sidelines and 3...Nf6 4 e3 Bg4.} Nc6 {[%emt 0:01:49]} 7. Nc3 {[%emt 0:00:15]} Bg7 {[%emt 0:00:40]} 8. e3 {[%emt 0:00:30]} O-O {[%emt 0:01:35]} 9. Be2 {[%emt 0:00:36]} Ne4 {[%emt 0:07:29]} 10. O-O {[%emt 0:12:56]} ({Of course not} 10. Nxe4 dxe4 11. Nd2 (11. Qxe4 $2 {loses.} Bf5 $19) 11... Bf5 $11) 10... Bf5 {[%emt 0:06:53][%cal Oe4g3]} 11. Qb3 {[%emt 0:00:45]} Nxc3 {[%emt 0:05:07]} 12. bxc3 {[%emt 0:01:44]} Na5 {[%emt 0:04:51]} 13. Qb4 {[%emt 0:09:06]} Rc8 {[%emt 0:01:03]} 14. Nd2 {[%emt 0:01:38]} e5 {[%emt 0:19:22] [#]} 15. dxe5 $146 {[%emt 0:10:06]} ({Predecessor:} 15. Bg3 Re8 16. dxe5 Qc7 17. Nb3 Nc6 18. Qc5 Nxe5 19. Qxa7 Qxc3 20. Qxb7 Qb2 21. Rfe1 {½-½ (50) Wojtyra,S (2338)-Scalvenzo,I (2392) ICCF email 2011}) 15... Qc7 {[%emt 0:02:11][%csl LRc3,LRe5] The position is equal.} 16. Rac1 {[%emt 0:20:07][%cal Oe5e6]} Nc6 {[%emt 0:00:42] Against e6} 17. Qa3 {[%emt 0:00:28][%cal Oe5e6]} Bxe5 {[%emt 0:09:13]} 18. Bxe5 {[%emt 0:00:16]} Nxe5 {[%emt 0:02:01]} 19. c4 {[%emt 0:00:43]} dxc4 {[%emt 0:03:39]} 20. Nxc4 {[%emt 0:00:19]} Nxc4 {[%emt 0:01:38]} 21. Bxc4 {[%emt 0:03:12][%cal Oc4e6] [#] Hoping for Be6!} Qb6 {[%emt 0:04:39] Prevents Be6.} 22. h4 {[%emt 0:05:45]} a6 {[%emt 0:05:05]} 23. h5 {[%emt 0:10:06]} gxh5 {[%emt 0:00:08]} 24. Bd5 {[%emt 0:00:31]} Rxc1 {[%emt 0:06:10]} 25. Rxc1 {[%emt 0:00:07]} Rc8 {[%emt 0:01:16]} 26. e4 {[%emt 0:02:27]} Rxc1+ {[%emt 0:02:50]} 27. Qxc1 $11 {[%emt 0:00:06][%mdl 4096] Endgame KQB-KQB} Be6 {[%emt 0:00:35]} 28. Qf4 {[%emt 0:10:26]} Kf8 {[%emt 0:01:52]} 29. a4 {[%emt 0:00:22]} Bxd5 {[%emt 0:01:05]} 30. exd5 {[%emt 0:00:06] [#] Strongly threatening d6. KQ-KQ} Ke7 {[%emt 0:00:34] Against d6+} 31. Qe5+ {[%emt 0:01:19]} Kd7 {[%emt 0:00:11]} 32. Qxh5 {[%emt 0:00:27]} Qb1+ {[%emt 0:00:33]} 33. Kh2 {[%emt 0:00:40]} Qg6 {[%emt 0:00:10]} 34. Qh3+ {[%emt 0:05:03]} Kd6 {[%emt 0:00:45]} 35. Qa3+ {[%emt 0:00:18]} Kxd5 {[%emt 0:02:12]} 36. Qf3+ {[%emt 0:00:07]} Kd4 {[%emt 0:02:08]} 37. Qxb7 {[%emt 0:00:24]} Qh5+ {[%emt 0:00:07]} 38. Kg1 {[%emt 0:00:24]} Qd1+ {[%emt 0:00:11]} 39. Kh2 {[%emt 0:00:05] aiming for Qd7+.} Qh5+ {[%emt 0:00:30]} 40. Kg1 {[%emt 0:00:00]} Qd1+ {[%emt 0:00:00]} 41. Kh2 {[%emt 0:00:11] An interesting draw.   Weighted Error Value: White=0.04 (flawless) /Black=0.01 (flawless)} 1/2-1/2

[Event "Hungarian Championship Men 2022"]
[Site "Budapest"]
[Date "2022.12.10"]
[Round "6.4"]
[White "Fodor, Tamas Jr."]
[Black "Grigoriants, Sergey"]
[Result "1/2-1/2"]
[ECO "D45"]
[WhiteElo "2517"]
[BlackElo "2550"]
[Annotator "TA"]
[PlyCount "78"]
[EventDate "2022.12.03"]
[EventType "tourn"]
[EventCountry "HUN"]
[SourceTitle "playchess.com"]
[Source "ChessBase"]
[SourceQuality "1"]
[TimeControl "40/5400+30:1800+30"]

{[%evp 17,78,39,37,29,45,17,17,9,50,28,41,14,27,4,53,57,62,33,41,22,42,52,63,17,12,0,0,-2,-4,-5,0,-3,0,-8,0,-11,-11,-12,-12,-12,0,-11,-11,-11,-11,-11,0,-22,-28,-120,-8,-127,-19,-19,-8,-8,-8,-8,-8,-8,-8,-8,0]} 1. d4 {[%emt 0:00:36]} Nf6 {[%emt 0:00:46]} 2. c4 {[%emt 0:00:08]} e6 {[%emt 0:00:32]} 3. Nf3 {[%emt 0:00:06]} d5 {[%emt 0:02:36]} 4. Nc3 {[%emt 0:00:20]} c6 {[%emt 0:05:48]} 5. e3 {[%emt 0:00:24]} Nbd7 {[%emt 0:00:22]} 6. Be2 {[%emt 0:00:49]} Bd6 {[%emt 0:02:20]} 7. b3 {[%emt 0:00:40]} O-O {[%emt 0:02:41]} 8. O-O {[%emt 0:00:12]} dxc4 {[%emt 0:17:21]} 9. bxc4 {[%emt 0:00:42]} e5 {[%emt 0:00:06]} 10. Qb3 {[%emt 0:06:39] [#] D45: Semi-Slav: 5 e3.} h6 $146 {[%emt 0:03:05]} ({Predecessor:} 10... Qe7 11. a4 Re8 12. Re1 e4 13. Nd2 c5 14. Nf1 a6 15. a5 Rb8 16. Na4 Qd8 17. Bd2 cxd4 18. exd4 {1-0 (36) Portisch,L (2610)-Nogueiras Santiago,J (2575) Rotterdam 1989}) 11. Ba3 {[%emt 0:01:57]} Bxa3 {[%emt 0:06:18]} 12. Qxa3 {[%emt 0:00:07]} Re8 {[%emt 0:00:09]} 13. Rfd1 {[%emt 0:03:38] Strongly threatening Nxe5.} Qc7 {[%emt 0:07:17]} 14. Rab1 {[%emt 0:03:47]} b6 {[%emt 0:00:51]} 15. c5 {[%emt 0:10:21] Threatening Nxe5.} bxc5 {[%emt 0:13:17]} (15... exd4 $11 {deserves consideration.} 16. exd4 Rb8) 16. dxe5 $14 {[%emt 0:05:35]} Ng4 {[%emt 0:00:36]} 17. Ne4 {[%emt 0:00:30] Hoping for Nd6.} Ngxe5 {[%emt 0:00:57]} 18. Nd6 {[%emt 0:15:20]} Nxf3+ {[%emt 0:04:49]} 19. Bxf3 {[%emt 0:00:54]} Re6 {[%emt 0:02:05]} 20. Nc4 {[%emt 0:10:50] White has more active pieces.} (20. Nb5 $14 cxb5 21. Bxa8) 20... Ne5 $11 {[%emt 0:05:14]} 21. Nxe5 {[%emt 0:05:04]} ({Don't play} 21. Qxc5 Nxf3+ 22. gxf3 Rg6+ 23. Kh1 Rg5 $15) 21... Rxe5 {[%emt 0:00:20]} 22. Rbc1 {[%emt 0:00:50]} Be6 {[%emt 0:05:42][%cal Bc8e6,Be6a2,Ba2b3,Bb3c2,Bc2b1][%mdl 32]} 23. Rxc5 {[%emt 0:02:04]} Rxc5 {[%emt 0:00:24]} 24. Qxc5 {[%emt 0:00:07]} Bxa2 {[%emt 0:00:08]} 25. Ra1 {[%emt 0:01:13]} Rb8 {[%emt 0:06:12]} 26. Qc2 {[%emt 0:03:54]} Bb3 {[%emt 0:02:42]} 27. Qxc6 {[%emt 0:00:40]} Qxc6 {[%emt 0:00:25]} 28. Bxc6 {[%emt 0:00:07][%cal Oh2h3][%mdl 4096] Endgame KRB-KRB} Bc2 {[%emt 0:05:59] Against h3} 29. f4 {[%emt 0:00:39]} Rb1+ {[%emt 0:00:14]} 30. Rxb1 {[%emt 0:00:04]} Bxb1 {[%emt 0:00:03] KB-KB} 31. Kf2 {[%emt 0:00:46]} f5 {[%emt 0:01:03]} 32. h3 {[%emt 0:02:30]} Kf7 {[%emt 0:00:21]} 33. g4 {[%emt 0:00:07] [#]} (33. Ke2 $11) 33... a5 {[%emt 0:00:49]} (33... fxg4 $1 $17 34. hxg4 a5) 34. Ke2 {[%emt 0:01:35] [#]} (34. gxf5 $1 $11 {was the only way to keep the balance.} Ke7 35. Ke2 (35. e4 $2 Kd6 $19)) 34... g5 {[%emt 0:01:02]} ({Black should play} 34... fxg4 $1 $17 35. hxg4 Ba2) 35. Kd2 $1 {[%emt 0:01:56] The position is equal.} Ke7 {[%emt 0:01:05]} 36. Kc3 {[%emt 0:01:09]} Kd6 {[%emt 0:00:37]} 37. Bb7 {[%emt 0:01:11]} Kc5 {[%emt 0:00:38]} 38. Bc8 {[%emt 0:01:54]} fxg4 {[%emt 0:00:10]} 39. hxg4 {[%emt 0:00:05]} gxf4 {[%emt 0:01:42] Weighted Error Value: White=0.24 (precise) /Black=0.19 (very precise)} 1/2-1/2

[Event "Hungarian Championship Men 2022"]
[Site "Budapest"]
[Date "2022.12.10"]
[Round "6.5"]
[White "Papp, Gabor"]
[Black "Korpa, Bence"]
[Result "1-0"]
[ECO "B12"]
[WhiteElo "2564"]
[BlackElo "2500"]
[Annotator "TA"]
[PlyCount "125"]
[EventDate "2022.12.03"]
[EventType "tourn"]
[EventCountry "HUN"]
[SourceTitle "playchess.com"]
[Source "ChessBase"]
[SourceQuality "1"]
[TimeControl "40/5400+30:1800+30"]

{[%evp 9,125,-29,0,-37,0,0,0,0,0,0,4,0,2,0,12,13,4,12,12,9,6,0,8,14,32,29,35,13,34,35,57,0,25,33,59,82,68,77,135,-79,-87,-86,-116,-89,91,0,0,0,3,0,0,0,33,0,0,0,0,0,0,-18,-31,-25,-15,-18,-23,-16,-28,-20,0,0,0,0,0,0,0,0,0,0,0,0,0,0,0,0,0,0,0,0,0,0,0,0,0,0,0,0,0,0,0,0,0,0,0,0,0,0,12850,12850,27999,27999,27999,27999,27999,27999,27999,27999,27999,27999]} 1. e4 {[%emt 0:00:34][%cal Be2e4,Be4e5][%mdl 32]} c6 {[%emt 0:00:44]} 2. d4 {[%emt 0:00:15]} d5 {[%emt 0:00:08]} 3. e5 {[%emt 0:00:24]} Bf5 {[%emt 0:00:12]} 4. g4 {[%emt 0:00:07]} Be4 {[%emt 0:01:53]} 5. f3 {[%emt 0:00:32]} Bg6 {[%emt 0:00:08]} 6. e6 {[%emt 0:00:20] B12: Caro-Kann: Advance Variation.} Qd6 {[%emt 0:01:07]} 7. exf7+ {[%emt 0:00:31]} Bxf7 {[%emt 0:00:08]} 8. Nc3 $1 {[%emt 0:00:36][%mdl 4] The position is equal. is currently scoring better than 8.f4.} Nd7 {[%emt 0:04:57]} 9. f4 {[%emt 0:00:19] Prevents e5.} h5 {[%emt 0:17:47]} 10. g5 {[%emt 0:06:38]} e6 {[%emt 0:01:17]} 11. Nf3 {[%emt 0:12:12] [#]} h4 $146 {[%emt 0:08:18]} ({Predecessor:} 11... Ne7 12. Ne5 Nxe5 13. fxe5 Qd7 14. Ne2 Bg6 15. Nf4 Be4 16. Rg1 O-O-O 17. Be3 g6 {½-½ (37) Charochkina,D (2335)-Nechaeva,M (2377) Obninsk 2022}) 12. Bh3 {[%emt 0:08:51]} Ne7 {[%emt 0:06:58]} 13. Qe2 {[%emt 0:00:19]} O-O-O {[%emt 0:00:53]} 14. O-O {[%emt 0:02:58]} Nf5 {[%emt 0:02:00]} 15. Qf2 {[%emt 0:02:56]} Bh5 {[%emt 0:05:24]} 16. Ne5 {[%emt 0:06:42]} (16. Nxh4 {simplifies} g6 17. Nxf5 exf5 18. b3) 16... Qb4 {[%emt 0:03:55]} 17. Bxf5 {[%emt 0:01:34]} exf5 {[%emt 0:00:10]} 18. a3 {[%emt 0:01:57]} (18. Qxh4 $2 Qxd4+ 19. Qf2 Qxf2+ 20. Kxf2 Bc5+ 21. Kg3 d4 $19) (18. Nd3 $5 {[%cal Rd3b4]} Qb6 19. h3 $11) 18... Qb6 {[%emt 0:03:02]} 19. b4 {[%emt 0:09:03]} (19. Qxh4 $2 Qxd4+ 20. Qf2 Qxf2+ 21. Kxf2 d4 $19) 19... Qa6 {[%emt 0:10:01]} 20. Nd3 {[%emt 0:12:06] Pair of Knights!} (20. Qxh4 Nxe5 21. fxe5 Qxf1+ $3 {[%mdl 512]} 22. Kxf1 Be2+ $1 {[%mdl 512]} 23. Nxe2 Rxh4 $17) ({Better is} 20. Rb1 $14) 20... g6 {[%emt 0:08:11]} (20... Qc4 $5 {[%cal Rc4c3]} 21. Bd2 Kb8 $11) 21. Be3 {[%emt 0:08:09]} Re8 {[%emt 0:06:42]} 22. b5 {[%emt 0:01:04]} cxb5 {[%emt 0:01:25]} 23. Rab1 {[%emt 0:06:05]} b4 {[%emt 0:03:52]} (23... Nb6 $142) 24. Nxd5 $2 {[%emt 0:05:36] [#]} (24. axb4 $16 Bg7 25. Ne5 (25. Nxd5 Qc4 $14)) 24... Qe6 $1 $17 {[%emt 0:05:34]} (24... Qxa3 $2 25. Ra1 $18 (25. N3xb4 Bxb4 26. Ra1 Be1 $16) (25. Qxh4 $2 Qa5 $19)) (24... bxa3 $6 25. c4 $11) 25. Qg2 {[%emt 0:00:33]} h3 $1 {[%emt 0:00:09]} (25... bxa3 $6 26. c4 $11) 26. Qh1 {[%emt 0:00:02]} Qe4 $2 {[%emt 0:01:43]} (26... bxa3 $17 {and life is bright. Hoping for ...a2.} 27. Rfe1 Qa6) 27. axb4 {[%emt 0:04:47]} ({Weaker is} 27. N3xb4 Qxh1+ 28. Kxh1 Be2 $17) (27. Qxe4 $16 Rxe4 28. axb4 (28. N3xb4 Bg7 $11)) 27... Qxh1+ $1 $11 {[%emt 0:03:40]} 28. Kxh1 {[%emt 0:00:02]} Be2 {[%emt 0:02:20]} 29. Rf2 {[%emt 0:02:23]} Bxd3 {[%emt 0:00:10]} 30. cxd3 {[%emt 0:00:02]} Bd6 {[%emt 0:00:53]} 31. b5 {[%emt 0:01:42]} Nb6 {[%emt 0:00:39]} 32. Rc1+ {[%emt 0:02:01]} Kb8 {[%emt 0:01:08]} 33. Nxb6 {[%emt 0:00:04]} axb6 {[%emt 0:00:08]} 34. Rf3 {[%emt 0:00:08] [#]} Rxe3 $1 {[%emt 0:01:08][%mdl 64] Remove Defender} 35. Rxe3 {[%emt 0:00:02]} Bxf4 {[%emt 0:00:06]} 36. Rce1 {[%emt 0:00:02]} Bxe3 {[%emt 0:00:09]} 37. Rxe3 {[%emt 0:00:03][%mdl 4096] Endgame KR-KR} Rh5 {[%emt 0:00:43]} 38. d5 {[%emt 0:01:28]} Kc7 {[%emt 0:00:35]} 39. Re7+ {[%emt 0:00:14]} Kd6 {[%emt 0:00:09]} 40. Re6+ {[%emt 0:00:00]} Kxd5 {[%emt 0:00:00]} 41. Rxg6 {[%emt 0:01:42]} Kc5 {[%emt 0:02:34]} 42. Kg1 {[%emt 0:00:28]} Kxb5 {[%emt 0:17:33]} 43. Kf2 {[%emt 0:00:04] aiming for Kg3.} Kc5 {[%emt 0:01:09]} 44. Kg3 {[%emt 0:01:00]} b5 {[%emt 0:01:25][%cal Bb6b5,Bb5b4,Bb4b3,Bb3b2][%mdl 32] ...b4 is the strong threat.} 45. d4+ {[%emt 0:07:51]} Kxd4 {[%emt 0:03:51] Strongly threatening ...b4.} 46. Kf4 {[%emt 0:00:06]} Rh7 {[%emt 0:01:17] Prevents Rh6.} 47. Rh6 {[%emt 0:04:02]} Rg7 {[%emt 0:02:21]} 48. Rxh3 {[%emt 0:09:19]} b4 {[%emt 0:01:27]} 49. Rg3 {[%emt 0:02:32]} Kc4 {[%emt 0:01:01]} 50. g6 {[%emt 0:09:25]} (50. Rg2 $5 b3 $8 51. Kxf5 $18) 50... b3 {[%emt 0:00:16] And now ...b2 would win.} 51. Kxf5 {[%emt 0:00:08]} b2 {[%emt 0:00:25]} 52. Rg1 {[%emt 0:00:01] Prevents b1Q+.} Rc7 $1 {[%emt 0:03:58]} 53. h4 {[%emt 0:00:32]} Kb3 $1 {[%emt 0:00:21]} 54. Rb1 {[%emt 0:00:20]} Rc5+ {[%emt 0:00:43]} 55. Kf6 {[%emt 0:01:28]} Rc6+ {[%emt 0:00:05]} 56. Kg5 {[%emt 0:01:01]} Rc5+ {[%emt 0:00:05]} 57. Kh6 {[%emt 0:01:15]} Kc2 {[%emt 0:00:51][%mdl 8192] [#]} (57... Rc1 $11 58. g7 (58. Rxb2+ Kxb2 59. h5 b5 $11) 58... Rxb1 59. g8=Q+ (59. g8=B+ Kc3 60. Bf7 Rg1 61. Bg6 b1=Q 62. Bxb1 Rxb1 63. Kg7 b5 64. h5 b4 65. h6 Rg1+ 66. Kh8 b3 67. h7 Rh1 68. Kg8 b2 69. h8=Q+ Rxh8+ 70. Kxh8 b1=Q 71. Kg7 Qf5 72. Kh6 Qg4 73. Kh7 Kd4 74. Kh6 Ke5 75. Kh7 Kf6 76. Kh8 Qg7#) 59... Ka3 60. Qf8+ Ka2 61. Qf7+ Ka1 62. Qxb7 Ka2) 58. Rxb2+ $3 $18 {[%emt 0:00:27][%mdl 512]} Kxb2 {[%emt 0:00:04]} (58... Kc1 59. Rxb7) 59. h5 {[%emt 0:00:37][%cal Bh4h5,Bh5h6][%mdl 32] White mates.} b5 {[%emt 0:01:27]} 60. g7 {[%emt 0:00:05]} Rc8 {[%emt 0:00:23]} 61. Kg6 {[%emt 0:00:37]} b4 {[%emt 0:00:45]} 62. h6 {[%emt 0:00:11]} Rc6+ {[%emt 0:00:24]} 63. Kh7 {[%emt 0:01:46] Weighted Error Value: White=0.13 (very precise) /Black=0.17 (very precise)} 1-0

[Event "Hungarian Championship Men 2022"]
[Site "Budapest"]
[Date "2022.12.11"]
[Round "7.1"]
[White "Korpa, Bence"]
[Black "Kozak, Adam"]
[Result "1/2-1/2"]
[ECO "A46"]
[WhiteElo "2500"]
[BlackElo "2538"]
[Annotator "TA"]
[PlyCount "78"]
[EventDate "2022.12.03"]
[EventType "tourn"]
[EventCountry "HUN"]
[SourceTitle "playchess.com"]
[Source "ChessBase"]
[SourceQuality "1"]
[TimeControl "40/5400+30:1800+30"]

{[%evp 11,78,4,14,7,29,12,16,10,31,26,32,37,41,30,32,28,25,19,15,19,32,25,25,18,30,20,21,21,21,21,45,18,54,55,55,55,45,17,17,17,17,17,42,42,42,42,42,42,42,42,42,42,42,4,4,4,4,4,4,4,12,0,0,0,12,0,12,0,12]} 1. d4 {[%emt 0:00:37]} Nf6 {[%emt 0:06:43]} 2. Nf3 {[%emt 0:00:12]} e6 {[%emt 0:00:33]} 3. Bf4 {[%emt 0:00:20]} b6 {[%emt 0:00:11]} 4. e3 {[%emt 0:00:51]} Bb7 {[%emt 0:00:18]} 5. h3 {[%emt 0:01:17]} Be7 {[%emt 0:03:36]} 6. Bd3 {[%emt 0:00:20]} O-O {[%emt 0:03:27]} 7. O-O {[%emt 0:01:37] A47: 1 d4 Nf6 2 Nf3 b6: Torre, London and Colle Systems.} Ne4 {[%emt 0:04:11]} 8. Nbd2 {[%emt 0:10:05]} f5 {[%emt 0:01:22]} 9. c3 {[%emt 0:01:47] [#]} Bd6 $146 {[%emt 0:09:07]} ({Predecessor:} 9... d6 10. Bc4 d5 11. Bd3 Nd7 12. Ne5 Nxd2 13. Qxd2 Nxe5 14. Bxe5 Bd6 15. f4 c5 16. Rf3 Bxe5 17. fxe5 {1-0 (43) Ushenina,A (2416)-Doluhanova,E (2352) Riadh 2017}) 10. Ne5 {[%emt 0:10:11]} Nxd2 {[%emt 0:04:05]} 11. Qxd2 {[%emt 0:00:09]} Nc6 {[%emt 0:07:24]} 12. Nxc6 {[%emt 0:07:11]} Bxc6 {[%emt 0:00:09]} 13. Bxd6 {[%emt 0:00:19]} cxd6 {[%emt 0:00:05]} 14. f3 {[%emt 0:03:24]} d5 {[%emt 0:04:43]} 15. g4 {[%emt 0:16:37]} a6 {[%emt 0:14:24]} 16. Qh2 {[%emt 0:05:51]} Bb5 {[%emt 0:08:12]} 17. Bxb5 {[%emt 0:00:14]} axb5 {[%emt 0:00:03]} 18. a3 {[%emt 0:09:52]} Qh4 {[%emt 0:03:46]} 19. Kg2 {[%emt 0:01:26]} h5 {[%emt 0:08:42]} 20. Qg3 {[%emt 0:07:08]} Qg5 {[%emt 0:06:03]} (20... Qxg3+ {simplifies} 21. Kxg3 hxg4 22. hxg4 fxg4 23. fxg4 Rxf1 24. Rxf1 Rf8) 21. Rae1 {[%emt 0:02:49]} (21. gxf5 {is interesting.} Qxe3 22. fxe6 dxe6 23. f4) 21... Rf6 {[%emt 0:07:49]} (21... fxg4 {simplifies} 22. hxg4 hxg4 23. Qxg4 Qxg4+ 24. fxg4 Rxf1 25. Rxf1 Rf8) 22. f4 {[%emt 0:12:25]} Qg6 {[%emt 0:00:04][%cal Rf5g4]} 23. g5 {[%emt 0:00:09]} Rff8 {[%emt 0:00:06]} 24. Qf3 {[%emt 0:00:12]} Qe8 {[%emt 0:01:07]} 25. Kf2 {[%emt 0:05:22]} g6 {[%emt 0:00:10]} 26. Rd1 {[%emt 0:00:18]} Qc8 {[%emt 0:01:45]} 27. Rd2 {[%emt 0:00:37]} Qc4 {[%emt 0:00:45]} 28. Qe2 {[%emt 0:01:19]} Ra5 {[%emt 0:02:33]} 29. Rfd1 {[%emt 0:00:27]} Kf7 {[%emt 0:00:11][%cal Bg8f7,Bf7e7,Be7d7,Bd7c7][%mdl 32]} 30. Qf3 {[%emt 0:00:47]} Ke7 {[%emt 0:00:59]} 31. Rd3 {[%emt 0:00:23]} d6 {[%emt 0:00:59]} 32. h4 {[%emt 0:00:29]} Kd7 {[%emt 0:01:12] The position is equal.} 33. Kg3 {[%emt 0:00:17]} Re8 {[%emt 0:00:28]} 34. R1d2 {[%emt 0:01:09]} Kc7 {[%emt 0:00:53]} 35. Kh2 {[%emt 0:00:30]} Raa8 {[%emt 0:00:14]} 36. Qh1 {[%emt 0:00:31]} Rad8 {[%emt 0:01:33]} 37. Qd1 {[%emt 0:00:43]} Ra8 {[%emt 0:00:35]} 38. Qh1 {[%emt 0:00:27]} Qc6 {[%emt 0:00:30]} 39. Qf3 {[%emt 0:00:25]} Qc4 {[%emt 0:00:30] Weighted Error Value: White=0.06 (flawless) /Black=0.06 (flawless)} 1/2-1/2

[Event "Hungarian Championship Men 2022"]
[Site "Budapest"]
[Date "2022.12.11"]
[Round "7.2"]
[White "Grigoriants, Sergey"]
[Black "Papp, Gabor"]
[Result "1-0"]
[ECO "C41"]
[WhiteElo "2550"]
[BlackElo "2564"]
[Annotator "TA"]
[PlyCount "49"]
[EventDate "2022.12.03"]
[EventType "tourn"]
[EventCountry "HUN"]
[SourceTitle "playchess.com"]
[Source "ChessBase"]
[SourceQuality "1"]
[TimeControl "40/5400+30:1800+30"]

{[%evp 9,49,20,17,22,22,10,24,0,10,7,42,4,22,0,4,0,33,19,63,57,69,59,104,98,96,75,92,72,153,150,143,149,149,158,159,145,214,208,806,788,1732,1726]} 1. e4 {[%emt 0:00:42]} e5 {[%emt 0:00:37]} 2. Nf3 {[%emt 0:00:26]} d6 {[%emt 0:00:06]} 3. Bc4 {[%emt 0:05:57]} Nf6 {[%emt 0:00:25]} 4. d3 {[%emt 0:03:09]} Be7 {[%emt 0:00:34]} 5. a4 {[%emt 0:04:32]} O-O {[%emt 0:00:46]} 6. O-O {[%emt 0:00:27] C24: Bishop's Opening: 2...Nf6.} c6 {[%emt 0:10:10]} 7. Ba2 {[%emt 0:00:52]} Nbd7 {[%emt 0:02:11]} 8. Nc3 {[%emt 0:09:56] White has an edge.} a5 {[%emt 0:01:27]} 9. h3 {[%emt 0:02:33] [#]} h6 $146 {[%emt 0:10:26]} ({Predecessor:} 9... Re8 10. Ne2 Nf8 11. Ng3 Ng6 12. c3 h6 13. d4 exd4 14. cxd4 Bf8 15. Re1 Be6 {1-0 (47) Daulyte Cornette,D (2400)-Georgescu,L (2276) Europe Echecs INT 2020}) 10. Kh1 {[%emt 0:17:54]} Re8 {[%emt 0:27:29]} (10... Nc5 {simplifies} 11. Re1 Be6 12. Be3 Bxa2 13. Rxa2 Ne6) 11. Nh4 {[%emt 0:13:42]} (11. Be3 {simplifies} Nf8 12. d4 exd4 13. Nxd4 Ne6 14. Nxe6 Bxe6 15. Bxe6 fxe6 16. f4) 11... d5 {[%emt 0:05:38]} 12. Nf5 {[%emt 0:03:22]} Bb4 {[%emt 0:01:04]} 13. f4 {[%emt 0:02:29]} (13. exd5 Nb6 14. Qf3 Bxf5 15. Qxf5 cxd5 $11) 13... Bxc3 {[%emt 0:08:49]} 14. bxc3 {[%emt 0:01:02]} exf4 {[%emt 0:01:43]} 15. Bxf4 {[%emt 0:02:46]} Ne5 {[%emt 0:00:04] [#]} 16. Bg3 $1 {[%emt 0:09:54]} Ng6 {[%emt 0:07:04]} 17. Qf3 {[%emt 0:10:09][%cal Of5h6] Black must now prevent Nxh6+!} Bxf5 {[%emt 0:01:45]} 18. Qxf5 {[%emt 0:00:20]} Qc8 {[%emt 0:00:24] [#]} (18... Ne7 $142 19. Qf3 dxe4 20. dxe4 Ng6) 19. Rab1 $1 $16 {[%emt 0:01:05]} (19. exd5 $6 Qxf5 20. Rxf5 Ne7 $11) 19... Re7 {[%emt 0:10:39]} 20. exd5 {[%emt 0:04:17] White has more active pieces.} cxd5 {[%emt 0:00:05]} 21. Bxd5 {[%emt 0:00:42]} Qxc3 {[%emt 0:00:06]} 22. Bc4 {[%emt 0:01:57] This pair of bishops is nice.} ({Don't play} 22. Rxb7 Rd8 23. Rb3 (23. Qxg6 $2 Rxb7 24. Bc4 Qxc4 $19) (23. Rxe7 $2 Nxe7 24. Bxf7+ Kxf7 $19) 23... Qxc2 $16) (22. Bxb7 Rae8 $16) 22... Kh7 {[%emt 0:04:50]} (22... Kh8 $16 {is a better defense.}) 23. Bh4 $18 {[%emt 0:01:20]} ({Resist} 23. Bd6 Rd7) 23... Re5 $2 {[%emt 0:00:36]} (23... Rb8 24. Bb3 (24. Bxf6 Qxf6 25. Qxf6 gxf6 $18) 24... Rc8 25. Bxf6 gxf6 26. Qxf6 Qxf6 27. Rxf6 Ne5) 24. Bxf6 {[%emt 0:00:16] Qd7 is the strong threat.} gxf6 {[%emt 0:00:33]} 25. Qxf6 {[%emt 0:00:08] Weighted Error Value: White=0.06 (flawless) /Black=0.25 (precise)} 1-0